[Event "Titled Tuesday Blitz November 14 Late 2023"]
[White "Jaskolka, Tomasz"]
[Black "Melikhov, Evgeny V."]
[WhiteFideId "1170791"]
[BlackFideId "4122046"]
[WhiteElo "2534"]
[BlackElo "2380"]
[Result "0-1"]
[Round "4"]
[TimeControl "180+1"]
[Date "2023.11.14"]
[WhiteClock "0:00:00"]
[BlackClock "0:00:01"]
[Board "111"]

1. e4 {[%clk 0:03:00]}  e5 {[%clk 0:02:54]} 2. Nf3 {[%clk 0:03:01]}  Nc6 {[%clk 0:02:53]} 3. Bc4 {[%clk 0:03:02]}  Nf6 {[%clk 0:02:53]} 4. Ng5 {[%clk 0:03:02]}  d5 {[%clk 0:02:53]} 5. exd5 {[%clk 0:03:03]}  Na5 {[%clk 0:02:53]} 6. Bb5+ {[%clk 0:03:04]}  c6 {[%clk 0:02:53]} 7. dxc6 {[%clk 0:03:05]}  bxc6 {[%clk 0:02:54]} 8. Bd3 {[%clk 0:03:05]}  Ng4 {[%clk 0:02:53]} 9. Nf3 {[%clk 0:02:29]}  Bc5 {[%clk 0:02:43]} 10. O-O {[%clk 0:02:20]}  f5 {[%clk 0:02:29]} 11. b4 {[%clk 0:02:07]}  Bxb4 {[%clk 0:02:07]} 12. h3 {[%clk 0:02:01]}  e4 {[%clk 0:02:05]} 13. hxg4 {[%clk 0:02:01]}  exd3 {[%clk 0:02:05]} 14. Re1+ {[%clk 0:01:59]}  Kf7 {[%clk 0:01:51]} 15. Ne5+ {[%clk 0:01:49]}  Kg8 {[%clk 0:01:51]} 16. Nxd3 {[%clk 0:01:41]}  Bd6 {[%clk 0:01:43]} 17. Qe2 {[%clk 0:01:19]}  h6 {[%clk 0:01:37]} 18. Qe8+ {[%clk 0:01:00]}  Kh7 {[%clk 0:01:35]} 19. Qxd8 {[%clk 0:01:00]}  Rxd8 {[%clk 0:01:35]} 20. Nc3 {[%clk 0:00:57]}  Nc4 {[%clk 0:01:21]} 21. gxf5 {[%clk 0:00:41]}  Bxf5 {[%clk 0:01:20]} 22. Ne4 {[%clk 0:00:42]}  Bc7 {[%clk 0:00:48]} 23. Nb2 {[%clk 0:00:35]}  Nd6 {[%clk 0:00:43]} 24. Nxd6 {[%clk 0:00:34]}  Rxd6 {[%clk 0:00:41]} 25. d3 {[%clk 0:00:34]}  Ba5 {[%clk 0:00:34]} 26. Nc4 {[%clk 0:00:32]}  Bxe1 {[%clk 0:00:33]} 27. Nxd6 {[%clk 0:00:32]}  Be6 {[%clk 0:00:31]} 28. Ne4 {[%clk 0:00:29]}  Rb8 {[%clk 0:00:27]} 29. Bf4 {[%clk 0:00:26]}  Rf8 {[%clk 0:00:23]} 30. Bd6 {[%clk 0:00:22]}  Bxf2+ {[%clk 0:00:23]} 31. Nxf2 {[%clk 0:00:22]}  Rd8 {[%clk 0:00:22]} 32. Ne4 {[%clk 0:00:22]}  Bd5 {[%clk 0:00:21]} 33. Bc5 {[%clk 0:00:22]}  Bxe4 {[%clk 0:00:19]} 34. dxe4 {[%clk 0:00:23]}  Rd2 {[%clk 0:00:20]} 35. Rc1 {[%clk 0:00:22]}  a5 {[%clk 0:00:19]} 36. a4 {[%clk 0:00:21]}  Re2 {[%clk 0:00:19]} 37. Bb6 {[%clk 0:00:16]}  Rxe4 {[%clk 0:00:19]} 38. c4 {[%clk 0:00:16]}  Re2 {[%clk 0:00:16]} 39. Bxa5 {[%clk 0:00:12]}  Ra2 {[%clk 0:00:16]} 40. Bb6 {[%clk 0:00:11]}  Rxa4 {[%clk 0:00:16]} 41. Kf2 {[%clk 0:00:11]}  Kg6 {[%clk 0:00:15]} 42. Kf3 {[%clk 0:00:11]}  Kf5 {[%clk 0:00:15]} 43. c5 {[%clk 0:00:12]}  g5 {[%clk 0:00:15]} 44. Rd1 {[%clk 0:00:11]}  Ra3+ {[%clk 0:00:15]} 45. Kf2 {[%clk 0:00:11]}  h5 {[%clk 0:00:14]} 46. Rd6 {[%clk 0:00:11]}  h4 {[%clk 0:00:14]} 47. Rxc6 {[%clk 0:00:11]}  Ra2+ {[%clk 0:00:14]} 48. Kg1 {[%clk 0:00:11]}  g4 {[%clk 0:00:14]} 49. Rc8 {[%clk 0:00:10]}  g3 {[%clk 0:00:13]} 50. Rf8+ {[%clk 0:00:10]}  Ke6 {[%clk 0:00:13]} 51. Rf1 {[%clk 0:00:10]}  Kd5 {[%clk 0:00:12]} 52. Rc1 {[%clk 0:00:09]}  Kc6 {[%clk 0:00:12]} 53. Bd8 {[%clk 0:00:10]}  Ra4 {[%clk 0:00:10]} 54. Be7 {[%clk 0:00:10]}  Re4 {[%clk 0:00:09]} 55. Bd6 {[%clk 0:00:10]}  Re2 {[%clk 0:00:09]} 56. Kf1 {[%clk 0:00:09]}  Rf2+ {[%clk 0:00:09]} 57. Kg1 {[%clk 0:00:09]}  Re2 {[%clk 0:00:09]} 58. Rf1 {[%clk 0:00:08]}  Rd2 {[%clk 0:00:07]} 59. Be7 {[%clk 0:00:07]}  Rd4 {[%clk 0:00:07]} 60. Re1 {[%clk 0:00:03]}  Rf4 {[%clk 0:00:04]} 61. Ra1 {[%clk 0:00:02]}  Re4 {[%clk 0:00:04]} 62. Bd6 {[%clk 0:00:02]}  Re2 {[%clk 0:00:03]} 63. Kf1 {[%clk 0:00:02]}  Rf2+ {[%clk 0:00:04]} 64. Kg1 {[%clk 0:00:03]}  Re2 {[%clk 0:00:04]} 65. Rf1 {[%clk 0:00:03]}  Rd2 {[%clk 0:00:04]} 66. Re1 {[%clk 0:00:03]}  Rc2 {[%clk 0:00:03]} 67. Be7 {[%clk 0:00:04]}  Rc4 {[%clk 0:00:03]} 68. Kf1 {[%clk 0:00:04]}  Rf4+ {[%clk 0:00:02]} 69. Ke2 {[%clk 0:00:05]}  Rf2+ {[%clk 0:00:02]} 70. Kd3 {[%clk 0:00:05]}  Rxg2 {[%clk 0:00:02]} 71. Kd4 {[%clk 0:00:02]}  h3 {[%clk 0:00:01]} 72. Bd6 {[%clk 0:00:00]}  h2 {[%clk 0:00:01]} 0-1


[Site "https://www.chess.com"]

[Event "Titled Tuesday Blitz November 14 Late 2023"]
[White "Shubenkova, Veronika"]
[Black "Bernat, David"]
[WhiteFideId "44124040"]
[BlackFideId "2099225"]
[WhiteElo "2513"]
[BlackElo "2368"]
[Result "0-1"]
[Round "4"]
[TimeControl "180+1"]
[Date "2023.11.14"]
[WhiteClock "0:00:00"]
[BlackClock "0:00:03"]
[Board "114"]

1. d4 {[%clk 0:03:00]}  d5 {[%clk 0:02:57]} 2. e3 {[%clk 0:03:01]}  Nf6 {[%clk 0:02:53]} 3. f4 {[%clk 0:03:02]}  c5 {[%clk 0:02:54]} 4. Nf3 {[%clk 0:03:00]}  Nc6 {[%clk 0:02:54]} 5. c3 {[%clk 0:02:59]}  Bg4 {[%clk 0:02:54]} 6. Be2 {[%clk 0:02:58]}  e6 {[%clk 0:02:54]} 7. Nbd2 {[%clk 0:02:58]}  Bd6 {[%clk 0:02:54]} 8. Ne5 {[%clk 0:02:58]}  Bxe2 {[%clk 0:02:54]} 9. Qxe2 {[%clk 0:02:58]}  Qc7 {[%clk 0:02:52]} 10. O-O {[%clk 0:02:58]}  cxd4 {[%clk 0:02:52]} 11. exd4 {[%clk 0:02:57]}  O-O {[%clk 0:02:29]} 12. Rf3 {[%clk 0:02:56]}  Ne7 {[%clk 0:02:23]} 13. Rh3 {[%clk 0:02:55]}  Ng6 {[%clk 0:02:22]} 14. Nf1 {[%clk 0:02:47]}  Bxe5 {[%clk 0:02:06]} 15. fxe5 {[%clk 0:02:46]}  Ne4 {[%clk 0:02:06]} 16. Qh5 {[%clk 0:02:45]}  f6 {[%clk 0:01:54]} 17. Qxh7+ {[%clk 0:02:43]}  Kf7 {[%clk 0:01:54]} 18. Bh6 {[%clk 0:02:21]}  Rg8 {[%clk 0:01:36]} 19. exf6 {[%clk 0:01:49]}  Nxf6 {[%clk 0:01:16]} 20. Rf3 {[%clk 0:01:46]}  Nh4 {[%clk 0:01:01]} 21. Rxf6+ {[%clk 0:01:18]}  Kxf6 {[%clk 0:00:58]} 22. Ne3 {[%clk 0:00:27]}  Nf5 {[%clk 0:00:44]} 23. Ng4+ {[%clk 0:00:24]}  Ke7 {[%clk 0:00:41]} 24. Bg5+ {[%clk 0:00:22]}  Kf8 {[%clk 0:00:15]} 25. Nh6 {[%clk 0:00:11]}  Nxh6 {[%clk 0:00:07]} 26. Bxh6 {[%clk 0:00:12]}  Qf7 {[%clk 0:00:02]} 27. Rf1 {[%clk 0:00:11]}  Qxf1+ {[%clk 0:00:01]} 28. Kxf1 {[%clk 0:00:11]}  gxh6 {[%clk 0:00:02]} 29. Qxb7 {[%clk 0:00:11]}  Re8 {[%clk 0:00:02]} 30. Qxa7 {[%clk 0:00:11]}  Re7 {[%clk 0:00:03]} 31. Qb8+ {[%clk 0:00:10]}  Kf7 {[%clk 0:00:03]} 32. Qf4+ {[%clk 0:00:10]}  Ke8 {[%clk 0:00:04]} 33. Qxh6 {[%clk 0:00:09]}  Rf8+ {[%clk 0:00:04]} 34. Ke2 {[%clk 0:00:09]}  Ref7 {[%clk 0:00:04]} 35. Qh4 {[%clk 0:00:08]}  Kd7 {[%clk 0:00:03]} 36. Qe1 {[%clk 0:00:06]}  Rg8 {[%clk 0:00:03]} 37. g3 {[%clk 0:00:06]}  Rh7 {[%clk 0:00:03]} 38. Qg1 {[%clk 0:00:06]}  Rf7 {[%clk 0:00:03]} 39. b4 {[%clk 0:00:06]}  Rc8 {[%clk 0:00:03]} 40. Kd2 {[%clk 0:00:05]}  Rf3 {[%clk 0:00:04]} 41. Qc1 {[%clk 0:00:04]}  Rf2+ {[%clk 0:00:04]} 42. Ke3 {[%clk 0:00:04]}  Rxh2 {[%clk 0:00:04]} 43. Qf1 {[%clk 0:00:02]}  Rxa2 {[%clk 0:00:03]} 44. Qf8 {[%clk 0:00:00]}  Rxf8 {[%clk 0:00:03]} 0-1


[Site "https://www.chess.com"]

[Event "Titled Tuesday Blitz November 14 Late 2023"]
[White "Skaric, Djuro"]
[Black "Meduri, Aakaash"]
[WhiteFideId "934569"]
[BlackFideId "2032252"]
[WhiteElo "2358"]
[BlackElo "2510"]
[Result "1-0"]
[Round "4"]
[TimeControl "180+1"]
[Date "2023.11.14"]
[WhiteClock "0:01:46"]
[BlackClock "0:01:15"]
[Board "117"]

1. g3 {[%clk 0:03:00]}  g6 {[%clk 0:02:58]} 2. Bg2 {[%clk 0:03:01]}  d5 {[%clk 0:02:57]} 3. d3 {[%clk 0:03:02]}  Bg7 {[%clk 0:02:58]} 4. Nf3 {[%clk 0:03:02]}  e5 {[%clk 0:02:58]} 5. O-O {[%clk 0:03:03]}  Nc6 {[%clk 0:02:57]} 6. Nc3 {[%clk 0:03:04]}  Nge7 {[%clk 0:02:56]} 7. e4 {[%clk 0:03:04]}  dxe4 {[%clk 0:02:56]} 8. dxe4 {[%clk 0:03:04]}  Qxd1 {[%clk 0:02:54]} 9. Rxd1 {[%clk 0:03:05]}  Bg4 {[%clk 0:02:54]} 10. Be3 {[%clk 0:03:03]}  O-O {[%clk 0:02:52]} 11. Rd2 {[%clk 0:02:58]}  Bxf3 {[%clk 0:02:50]} 12. Bxf3 {[%clk 0:02:58]}  Nd4 {[%clk 0:02:51]} 13. Bg2 {[%clk 0:02:56]}  c5 {[%clk 0:02:51]} 14. f4 {[%clk 0:02:49]}  Nec6 {[%clk 0:02:48]} 15. Nd5 {[%clk 0:02:47]}  Rad8 {[%clk 0:02:47]} 16. c3 {[%clk 0:02:46]}  Ne6 {[%clk 0:02:43]} 17. Rad1 {[%clk 0:02:45]}  exf4 {[%clk 0:02:32]} 18. gxf4 {[%clk 0:02:42]}  Rfe8 {[%clk 0:02:27]} 19. f5 {[%clk 0:02:36]}  gxf5 {[%clk 0:02:14]} 20. exf5 {[%clk 0:02:35]}  Nf8 {[%clk 0:02:06]} 21. Bxc5 {[%clk 0:02:30]}  Rc8 {[%clk 0:01:51]} 22. f6 {[%clk 0:02:11]}  Bh6 {[%clk 0:01:48]} 23. Rd3 {[%clk 0:02:11]}  Ne6 {[%clk 0:01:46]} 24. Rg3+ {[%clk 0:02:10]}  Kh8 {[%clk 0:01:46]} 25. Bf2 {[%clk 0:02:02]}  Rg8 {[%clk 0:01:36]} 26. Ne7 {[%clk 0:02:00]}  Nxe7 {[%clk 0:01:36]} 27. fxe7 {[%clk 0:02:00]}  Rge8 {[%clk 0:01:32]} 28. Rd7 {[%clk 0:01:59]}  b6 {[%clk 0:01:27]} 29. Rxa7 {[%clk 0:01:57]}  b5 {[%clk 0:01:21]} 30. Bh3 {[%clk 0:01:48]}  b4 {[%clk 0:01:17]} 31. Bxe6 {[%clk 0:01:48]}  fxe6 {[%clk 0:01:16]} 32. Bd4+ {[%clk 0:01:46]}  Bg7 {[%clk 0:01:15]} 1-0


[Site "https://www.chess.com"]

[Event "Titled Tuesday Blitz November 14 Late 2023"]
[White "Gerbelli Neto, Eduardo"]
[Black "Ronka, Erik"]
[WhiteFideId "2103281"]
[BlackFideId "505080"]
[WhiteElo "2357"]
[BlackElo "2510"]
[Result "0-1"]
[Round "4"]
[TimeControl "180+1"]
[Date "2023.11.14"]
[WhiteClock "0:00:00"]
[BlackClock "0:00:05"]
[Board "118"]

1. e4 {[%clk 0:03:00]}  d6 {[%clk 0:03:00]} 2. Nc3 {[%clk 0:03:00]}  g6 {[%clk 0:02:50]} 3. f4 {[%clk 0:02:55]}  Bg7 {[%clk 0:02:51]} 4. Nf3 {[%clk 0:02:55]}  c5 {[%clk 0:02:46]} 5. Bc4 {[%clk 0:02:55]}  e6 {[%clk 0:02:44]} 6. O-O {[%clk 0:02:55]}  Ne7 {[%clk 0:02:44]} 7. Qe1 {[%clk 0:02:55]}  a6 {[%clk 0:02:34]} 8. d3 {[%clk 0:02:55]}  b5 {[%clk 0:02:33]} 9. Bb3 {[%clk 0:02:55]}  O-O {[%clk 0:02:27]} 10. f5 {[%clk 0:02:50]}  exf5 {[%clk 0:02:24]} 11. Bg5 {[%clk 0:02:47]}  Kh8 {[%clk 0:02:20]} 12. exf5 {[%clk 0:02:02]}  f6 {[%clk 0:02:19]} 13. fxg6 {[%clk 0:02:02]}  Nxg6 {[%clk 0:02:06]} 14. Bd2 {[%clk 0:01:45]}  Nd7 {[%clk 0:01:56]} 15. Bd5 {[%clk 0:01:35]}  Ra7 {[%clk 0:01:56]} 16. Ne4 {[%clk 0:01:34]}  Nde5 {[%clk 0:01:55]} 17. Nh4 {[%clk 0:01:27]}  Bb7 {[%clk 0:01:47]} 18. Bxb7 {[%clk 0:01:15]}  Rxb7 {[%clk 0:01:48]} 19. Nf5 {[%clk 0:01:15]}  Rd7 {[%clk 0:01:37]} 20. Ba5 {[%clk 0:01:07]}  Qb8 {[%clk 0:01:25]} 21. Qg3 {[%clk 0:00:53]}  Qa7 {[%clk 0:00:43]} 22. Nexd6 {[%clk 0:00:39]}  c4+ {[%clk 0:00:38]} 23. Kh1 {[%clk 0:00:39]}  Qc5 {[%clk 0:00:35]} 24. Ne4 {[%clk 0:00:37]}  Qd5 {[%clk 0:00:35]} 25. Bb4 {[%clk 0:00:30]}  Rff7 {[%clk 0:00:33]} 26. Nxg7 {[%clk 0:00:29]}  Kxg7 {[%clk 0:00:32]} 27. Rad1 {[%clk 0:00:15]}  cxd3 {[%clk 0:00:31]} 28. cxd3 {[%clk 0:00:16]}  Nxd3 {[%clk 0:00:25]} 29. Nc3 {[%clk 0:00:11]}  Qc4 {[%clk 0:00:23]} 30. a3 {[%clk 0:00:11]}  Nxb4 {[%clk 0:00:15]} 31. axb4 {[%clk 0:00:12]}  Rxd1 {[%clk 0:00:14]} 32. Rxd1 {[%clk 0:00:11]}  Qxb4 {[%clk 0:00:14]} 33. Qf2 {[%clk 0:00:09]}  Qe7 {[%clk 0:00:11]} 34. Nd5 {[%clk 0:00:09]}  Qe5 {[%clk 0:00:12]} 35. Qf3 {[%clk 0:00:08]}  Rd7 {[%clk 0:00:11]} 36. b4 {[%clk 0:00:06]}  Rd6 {[%clk 0:00:07]} 37. Rd3 {[%clk 0:00:05]}  Ne7 {[%clk 0:00:05]} 38. Qg4+ {[%clk 0:00:00]}  Kf7 {[%clk 0:00:05]} 0-1


[Site "https://www.chess.com"]

[Event "Titled Tuesday Blitz November 14 Late 2023"]
[White "Eggleston, Thomas A"]
[Black "HeroRubiksCube"]
[WhiteFideId "412139"]
[WhiteElo "2344"]
[BlackElo "2506"]
[Result "0-1"]
[Round "4"]
[TimeControl "180+1"]
[Date "2023.11.14"]
[WhiteClock "0:00:00"]
[BlackClock "0:00:22"]
[Board "122"]

1. e4 {[%clk 0:03:00]}  d5 {[%clk 0:02:58]} 2. exd5 {[%clk 0:02:58]}  Nf6 {[%clk 0:02:59]} 3. Nf3 {[%clk 0:02:57]}  Nxd5 {[%clk 0:02:58]} 4. d4 {[%clk 0:02:57]}  g6 {[%clk 0:02:57]} 5. c4 {[%clk 0:02:55]}  Nf6 {[%clk 0:02:58]} 6. Nc3 {[%clk 0:02:55]}  Bg7 {[%clk 0:02:58]} 7. Be2 {[%clk 0:02:55]}  O-O {[%clk 0:02:59]} 8. O-O {[%clk 0:02:54]}  b6 {[%clk 0:02:59]} 9. Ne5 {[%clk 0:02:53]}  Bb7 {[%clk 0:02:59]} 10. Bf3 {[%clk 0:02:52]}  Qc8 {[%clk 0:02:59]} 11. Re1 {[%clk 0:02:45]}  e6 {[%clk 0:02:58]} 12. Bf4 {[%clk 0:02:37]}  Nfd7 {[%clk 0:02:37]} 13. Ng4 {[%clk 0:02:28]}  Nc6 {[%clk 0:02:24]} 14. Nh6+ {[%clk 0:02:22]}  Kh8 {[%clk 0:02:23]} 15. d5 {[%clk 0:02:22]}  Nd4 {[%clk 0:02:18]} 16. Be4 {[%clk 0:02:17]}  e5 {[%clk 0:02:11]} 17. Bd2 {[%clk 0:02:07]}  f5 {[%clk 0:01:57]} 18. Bb1 {[%clk 0:02:00]}  Qd8 {[%clk 0:01:55]} 19. Ne2 {[%clk 0:01:41]}  Qh4 {[%clk 0:01:36]} 20. Nxd4 {[%clk 0:01:34]}  exd4 {[%clk 0:01:31]} 21. g3 {[%clk 0:01:33]}  Qh3 {[%clk 0:01:23]} 22. Qc1 {[%clk 0:00:43]}  Ne5 {[%clk 0:01:16]} 23. Rxe5 {[%clk 0:00:36]}  Bxe5 {[%clk 0:01:16]} 24. Bd3 {[%clk 0:00:36]}  f4 {[%clk 0:01:11]} 25. gxf4 {[%clk 0:00:27]}  Bg7 {[%clk 0:00:49]} 26. Bf1 {[%clk 0:00:05]}  Qxh6 {[%clk 0:00:47]} 27. f5 {[%clk 0:00:06]}  Qh5 {[%clk 0:00:45]} 28. fxg6 {[%clk 0:00:06]}  hxg6 {[%clk 0:00:40]} 29. Bg2 {[%clk 0:00:05]}  Rae8 {[%clk 0:00:37]} 30. Bf4 {[%clk 0:00:04]}  Be5 {[%clk 0:00:30]} 31. Bg3 {[%clk 0:00:03]}  Bxg3 {[%clk 0:00:29]} 32. hxg3 {[%clk 0:00:03]}  Kg7 {[%clk 0:00:25]} 33. Qd2 {[%clk 0:00:03]}  Qe5 {[%clk 0:00:24]} 34. Rd1 {[%clk 0:00:02]}  Bc8 {[%clk 0:00:23]} 35. f4 {[%clk 0:00:02]}  Qe3+ {[%clk 0:00:23]} 36. Qxe3 {[%clk 0:00:02]}  dxe3 {[%clk 0:00:24]} 37. Re1 {[%clk 0:00:00]}  Bg4 {[%clk 0:00:22]} 0-1


[Site "https://www.chess.com"]

[Event "Titled Tuesday Blitz November 14 Late 2023"]
[White "Huda, Maryana"]
[Black "Kanyamarala, Tarun"]
[WhiteFideId "14116553"]
[BlackFideId "45004714"]
[WhiteElo "2336"]
[BlackElo "2504"]
[Result "1-0"]
[Round "4"]
[TimeControl "180+1"]
[Date "2023.11.14"]
[WhiteClock "0:00:10"]
[BlackClock "0:00:02"]
[Board "124"]

1. d4 {[%clk 0:03:00]}  d5 {[%clk 0:02:58]} 2. c4 {[%clk 0:03:00]}  e6 {[%clk 0:02:58]} 3. Nc3 {[%clk 0:02:59]}  c6 {[%clk 0:02:58]} 4. e3 {[%clk 0:02:57]}  Bd6 {[%clk 0:02:56]} 5. Bd3 {[%clk 0:02:53]}  f5 {[%clk 0:02:52]} 6. f4 {[%clk 0:02:52]}  Nf6 {[%clk 0:02:46]} 7. Nf3 {[%clk 0:02:51]}  O-O {[%clk 0:02:45]} 8. O-O {[%clk 0:02:44]}  Nbd7 {[%clk 0:02:45]} 9. a3 {[%clk 0:02:37]}  Ne4 {[%clk 0:02:44]} 10. Ne5 {[%clk 0:02:26]}  Nxe5 {[%clk 0:02:38]} 11. fxe5 {[%clk 0:02:11]}  Be7 {[%clk 0:02:38]} 12. Bxe4 {[%clk 0:02:08]}  fxe4 {[%clk 0:02:38]} 13. c5 {[%clk 0:02:01]}  b6 {[%clk 0:02:35]} 14. b4 {[%clk 0:01:44]}  a5 {[%clk 0:02:35]} 15. Bd2 {[%clk 0:01:38]}  axb4 {[%clk 0:02:26]} 16. axb4 {[%clk 0:01:37]}  Rxa1 {[%clk 0:02:25]} 17. Qxa1 {[%clk 0:01:38]}  Rxf1+ {[%clk 0:02:24]} 18. Qxf1 {[%clk 0:01:22]}  bxc5 {[%clk 0:02:24]} 19. bxc5 {[%clk 0:01:21]}  Qc7 {[%clk 0:02:13]} 20. Qb1 {[%clk 0:01:19]}  Ba6 {[%clk 0:02:02]} 21. Na4 {[%clk 0:01:14]}  Bb5 {[%clk 0:02:00]} 22. Nb6 {[%clk 0:01:14]}  Qa7 {[%clk 0:02:00]} 23. Nc8 {[%clk 0:01:00]}  Qb7 {[%clk 0:01:59]} 24. Nxe7+ {[%clk 0:01:00]}  Qxe7 {[%clk 0:01:58]} 25. Qa1 {[%clk 0:00:57]}  h6 {[%clk 0:01:58]} 26. Be1 {[%clk 0:00:51]}  Qf7 {[%clk 0:01:55]} 27. Bf2 {[%clk 0:00:50]}  Qh5 {[%clk 0:01:54]} 28. Qe1 {[%clk 0:00:46]}  Qg4 {[%clk 0:01:53]} 29. Bg3 {[%clk 0:00:46]}  Kf7 {[%clk 0:01:51]} 30. Qf2+ {[%clk 0:00:45]}  Ke8 {[%clk 0:01:51]} 31. h3 {[%clk 0:00:45]}  Qd1+ {[%clk 0:01:49]} 32. Kh2 {[%clk 0:00:45]}  Bf1 {[%clk 0:01:45]} 33. Bh4 {[%clk 0:00:42]}  Be2 {[%clk 0:01:31]} 34. Qg3 {[%clk 0:00:31]}  g5 {[%clk 0:01:29]} 35. Bxg5 {[%clk 0:00:29]}  hxg5 {[%clk 0:01:29]} 36. Qxg5 {[%clk 0:00:30]}  Bh5 {[%clk 0:01:23]} 37. Qf6 {[%clk 0:00:27]}  Bf7 {[%clk 0:01:22]} 38. Qh8+ {[%clk 0:00:26]}  Ke7 {[%clk 0:01:20]} 39. Qf6+ {[%clk 0:00:27]}  Kf8 {[%clk 0:01:20]} 40. Qh8+ {[%clk 0:00:26]}  Bg8 {[%clk 0:01:19]} 41. Qf6+ {[%clk 0:00:27]}  Ke8 {[%clk 0:01:18]} 42. Qg6+ {[%clk 0:00:26]}  Bf7 {[%clk 0:01:18]} 43. Qf6 {[%clk 0:00:24]}  Qh5 {[%clk 0:01:14]} 44. Qf4 {[%clk 0:00:24]}  Bg6 {[%clk 0:01:09]} 45. g4 {[%clk 0:00:24]}  Qh4 {[%clk 0:01:09]} 46. Qg3 {[%clk 0:00:23]}  Qh7 {[%clk 0:01:04]} 47. h4 {[%clk 0:00:21]}  Qa7 {[%clk 0:01:02]} 48. h5 {[%clk 0:00:20]}  Qa2+ {[%clk 0:01:02]} 49. Kh3 {[%clk 0:00:20]}  Bh7 {[%clk 0:01:00]} 50. Kh4 {[%clk 0:00:20]}  Qe2 {[%clk 0:00:57]} 51. Kg5 {[%clk 0:00:19]}  Qf1 {[%clk 0:00:57]} 52. Kh6 {[%clk 0:00:17]}  Qf7 {[%clk 0:00:52]} 53. Qf4 {[%clk 0:00:13]}  Qxf4+ {[%clk 0:00:51]} 54. exf4 {[%clk 0:00:12]}  e3 {[%clk 0:00:24]} 55. Kxh7 {[%clk 0:00:12]}  e2 {[%clk 0:00:24]} 56. Kg7 {[%clk 0:00:13]}  e1=Q {[%clk 0:00:22]} 57. h6 {[%clk 0:00:14]}  Qh4 {[%clk 0:00:17]} 58. g5 {[%clk 0:00:12]}  Qxf4 {[%clk 0:00:16]} 59. g6 {[%clk 0:00:12]}  Qf8+ {[%clk 0:00:16]} 60. Kh7 {[%clk 0:00:12]}  Ke7 {[%clk 0:00:15]} 61. g7 {[%clk 0:00:12]}  Qf5+ {[%clk 0:00:14]} 62. Kh8 {[%clk 0:00:11]}  Qg6 {[%clk 0:00:08]} 63. h7 {[%clk 0:00:11]}  Kf7 {[%clk 0:00:02]} 64. g8=Q+ {[%clk 0:00:10]} 1-0


[Site "https://www.chess.com"]

[Event "Titled Tuesday Blitz November 14 Late 2023"]
[White "patzersame"]
[Black "Erzhanov, Arman"]
[BlackFideId "4138821"]
[WhiteElo "2330"]
[BlackElo "2500"]
[Result "0-1"]
[Round "4"]
[TimeControl "180+1"]
[Date "2023.11.14"]
[WhiteClock "0:00:00"]
[BlackClock "0:00:02"]
[Board "126"]

1. e4 {[%clk 0:03:00]}  d6 {[%clk 0:03:00]} 2. d4 {[%clk 0:03:00]}  Nf6 {[%clk 0:03:00]} 3. Nc3 {[%clk 0:03:01]}  c6 {[%clk 0:03:01]} 4. a4 {[%clk 0:02:59]}  Nbd7 {[%clk 0:03:00]} 5. g4 {[%clk 0:02:58]}  e5 {[%clk 0:03:00]} 6. g5 {[%clk 0:02:58]}  Ng8 {[%clk 0:02:57]} 7. dxe5 {[%clk 0:02:54]}  dxe5 {[%clk 0:02:57]} 8. Bc4 {[%clk 0:02:51]}  Bb4 {[%clk 0:02:33]} 9. Qf3 {[%clk 0:02:44]}  Qe7 {[%clk 0:02:31]} 10. Bd2 {[%clk 0:02:40]}  a5 {[%clk 0:02:26]} 11. O-O-O {[%clk 0:02:39]}  Nc5 {[%clk 0:02:25]} 12. Nge2 {[%clk 0:02:32]}  Be6 {[%clk 0:02:20]} 13. Bxe6 {[%clk 0:02:30]}  Qxe6 {[%clk 0:02:19]} 14. Kb1 {[%clk 0:02:22]}  Ne7 {[%clk 0:02:18]} 15. h4 {[%clk 0:02:22]}  O-O-O {[%clk 0:02:18]} 16. Qe3 {[%clk 0:02:14]}  b6 {[%clk 0:02:06]} 17. f4 {[%clk 0:02:12]}  f6 {[%clk 0:01:51]} 18. f5 {[%clk 0:01:53]}  Qf7 {[%clk 0:01:51]} 19. Rhg1 {[%clk 0:01:51]}  Kb7 {[%clk 0:01:50]} 20. gxf6 {[%clk 0:01:37]}  gxf6 {[%clk 0:01:50]} 21. Qh6 {[%clk 0:01:33]}  Rdg8 {[%clk 0:01:48]} 22. Be3 {[%clk 0:01:32]}  Kc7 {[%clk 0:01:39]} 23. Bxc5 {[%clk 0:00:46]}  Bxc5 {[%clk 0:01:38]} 24. Rg3 {[%clk 0:00:46]}  Rxg3 {[%clk 0:01:25]} 25. Nxg3 {[%clk 0:00:47]}  Rd8 {[%clk 0:00:59]} 26. Rxd8 {[%clk 0:00:30]}  Kxd8 {[%clk 0:01:00]} 27. Nh5 {[%clk 0:00:30]}  Ng8 {[%clk 0:00:59]} 28. Qg7 {[%clk 0:00:26]}  Ke7 {[%clk 0:00:58]} 29. Qxf7+ {[%clk 0:00:23]}  Kxf7 {[%clk 0:00:58]} 30. Ne2 {[%clk 0:00:20]}  Bf2 {[%clk 0:00:57]} 31. Nhg3 {[%clk 0:00:19]}  Nh6 {[%clk 0:00:56]} 32. c3 {[%clk 0:00:14]}  Ng4 {[%clk 0:00:56]} 33. b4 {[%clk 0:00:14]}  Ne3 {[%clk 0:00:54]} 34. h5 {[%clk 0:00:12]}  Nc4 {[%clk 0:00:47]} 35. Kc2 {[%clk 0:00:12]}  Ke7 {[%clk 0:00:38]} 36. Nf1 {[%clk 0:00:12]}  Nd6 {[%clk 0:00:35]} 37. Kd3 {[%clk 0:00:11]}  Be1 {[%clk 0:00:33]} 38. bxa5 {[%clk 0:00:11]}  bxa5 {[%clk 0:00:34]} 39. Ne3 {[%clk 0:00:11]}  Kd7 {[%clk 0:00:23]} 40. Nc4 {[%clk 0:00:12]}  Nb7 {[%clk 0:00:20]} 41. Nc1 {[%clk 0:00:11]}  Bf2 {[%clk 0:00:17]} 42. Nb3 {[%clk 0:00:10]}  Kc7 {[%clk 0:00:11]} 43. Ncxa5 {[%clk 0:00:11]}  Nxa5 {[%clk 0:00:12]} 44. Nxa5 {[%clk 0:00:12]}  Kb6 {[%clk 0:00:11]} 45. Nc4+ {[%clk 0:00:12]}  Kc5 {[%clk 0:00:11]} 46. a5 {[%clk 0:00:12]}  Kb5 {[%clk 0:00:11]} 47. a6 {[%clk 0:00:09]}  Kxa6 {[%clk 0:00:10]} 48. Nd6 {[%clk 0:00:10]}  Bc5 {[%clk 0:00:08]} 49. Ne8 {[%clk 0:00:09]}  Be7 {[%clk 0:00:07]} 50. Ng7 {[%clk 0:00:08]}  Kb5 {[%clk 0:00:07]} 51. Ne6 {[%clk 0:00:07]}  Bd6 {[%clk 0:00:05]} 52. Nd8 {[%clk 0:00:06]}  Be7 {[%clk 0:00:05]} 53. Nf7 {[%clk 0:00:06]}  Kc5 {[%clk 0:00:04]} 54. Nh6 {[%clk 0:00:06]}  Kd6 {[%clk 0:00:04]} 55. Ng4 {[%clk 0:00:07]}  Kc5 {[%clk 0:00:04]} 56. Ne3 {[%clk 0:00:07]}  Bf8 {[%clk 0:00:04]} 57. Nc2 {[%clk 0:00:07]}  Kb5 {[%clk 0:00:04]} 58. c4+ {[%clk 0:00:06]}  Ka4 {[%clk 0:00:03]} 59. Kc3 {[%clk 0:00:06]}  Bc5 {[%clk 0:00:03]} 60. Ne1 {[%clk 0:00:06]}  Ka5 {[%clk 0:00:02]} 61. Kb3 {[%clk 0:00:06]}  Kb6 {[%clk 0:00:02]} 62. Nd3 {[%clk 0:00:06]}  Be7 {[%clk 0:00:01]} 63. Ka4 {[%clk 0:00:05]}  Bf8 {[%clk 0:00:01]} 64. Kb3 {[%clk 0:00:05]}  Be7 {[%clk 0:00:02]} 65. Ne1 {[%clk 0:00:04]}  Bf8 {[%clk 0:00:02]} 66. Nf3 {[%clk 0:00:05]}  Kc5 {[%clk 0:00:03]} 67. Nh4 {[%clk 0:00:00]}  Bh6 {[%clk 0:00:02]} 0-1


[Site "https://www.chess.com"]